bitfinex/quotes_ETHUSD_20241022
["timestamp","ask_amount","ask_price","bid_price","bid_amount"]
[1729557088840,0.01,2628.9,2627.1,3.80634]
[1729557088841,0.01,2627.1,2625.0,4.6228]
[1729557088999,0.44735056,2627.1,2625.0,0.8234]
[1729557089181,3.81529,2628.0,2625.0,0.8234]
[1729557089182,0.01,2626.7,2625.3,3.80899]
[1729557089383,0.01,2626.7,2625.3,0.761836]
[1729557089619,0.01,2627.2,2626.0,3.80799]
[1729557089806,0.01,2627.1,2625.0,0.8234]
[1729557089993,0.01,2626.7,2625.5,3.80875]
[1729557090194,3.80698,2626.8,2625.1,3.80937]
[1729557090195,0.01,2626.8,2625.1,3.80937]
[1729557090523,0.01,2627.0,2626.2,3.80774]
[1729557090822,3.80577,2627.6,2626.2,3.80774]
[1729557090823,0.01,2627.1,2626.4,3.80747]
[1729557091027,0.01,2628.0,2627.0,3.80657]
[1729557091333,0.01,2627.9,2626.3,3.80763]
[1729557091483,0.01877696,2628.4,2626.9,0.55]
[1729557091822,0.01,2629.7,2626.9,0.55]
[1729557091823,0.01,2629.1,2628.5,3.80443]
[1729557091994,0.01,2629.1,2627.6,0.55]
[1729557091995,0.01,2629.1,2628.6,3.8043]
[1729557092193,0.01,2629.9,2627.9,3.80522]
[1729557092194,0.33089398,2629.0,2628.7,3.80415]
[1729557092395,3.80248,2629.9,2627.9,3.80522]
[1729557092396,0.7643419,2629.6,2627.9,0.01]
[1729557092597,0.52625341,2629.0,2628.2,0.01]
[1729557092826,0.86031604,2628.9,2628.2,3.81488]
[1729557093024,0.86031604,2628.9,2628.0,3.80512]
[1729557093025,3.80601,2627.5,2626.4,3.80735]
[1729557093232,2.07774052,2627.4,2627.1,3.80647]
[1729557093453,0.01,2629.6,2627.3,2.94865049]
[1729557093603,0.01877696,2628.5,2628.0,0.01]
[1729557093942,2.12108117,2628.4,2628.1,3.805]
[1729557094145,1.11240975,2628.3,2628.2,3.80488]
[1729557094356,1.67336151,2628.3,2628.2,7.565873]
[1729557094505,0.01877696,2629.5,2628.9,3.80378]
[1729557094706,1.00867142,2630.1,2628.2,4.310993]
[1729557094950,4.81056142,2630.3,2629.2,3.80332]
[1729557095104,3.80174,2630.4,2629.3,3.80328]
[1729557095307,3.80142,2630.6,2628.2,4.565843]
[1729557095308,0.52546459,2630.3,2628.2,4.565843]
[1729557095556,3.80445,2628.6,2627.1,0.8182]
[1729557095739,3.80417,2628.7,2627.3,3.80608]
[1729557095907,3.8047,2628.4,2627.2,3.80627]
[1729557096103,3.8043,2628.6,2627.2,0.761285]
[1729557096303,5.42648,2629.1,2626.8,3.80689]
[1729557096509,1.6228,2629.1,2627.9,3.80519]
[1729557096806,3.8042,2628.7,2627.6,3.80572]
[1729557097025,1.6228,2629.1,2627.4,3.80594]
[1729557097382,0.01,2628.3,2626.7,3.80694]
[1729557097658,10.87785601,2629.0,2626.1,3.80782]
[1729557097659,3.80449,2628.5,2627.1,3.8064]
[1729557097820,3.80459,2628.4,2627.2,3.80621]
[1729557098024,0.01,2627.5,2624.7,5.42535]
[1729557098269,1.5415,2627.7,2623.1,1.6055]
[1729557098270,0.01,2625.9,2623.1,1.6055]
[1729557098489,0.01,2624.6,2622.2,1.6055]
[1729557098664,1.5415,2623.3,2622.3,3.81332]
[1729557098825,4.14,2623.0,2622.1,4.71373]
[1729557099024,3.81272,2622.8,2622.1,0.9]
[1729557099220,3.81272,2622.8,2622.0,0.11103603]
[1729557099221,0.01,2622.5,2622.0,0.11103603]
[1729557099542,0.01,2622.5,2621.5,3.0]
[1729557099543,18.34297893,2622.4,2621.5,3.0]
[1729557099755,1.00867142,2622.9,2621.5,3.0]
[1729557100068,0.01877696,2624.0,2622.6,3.813]
[1729557100278,2.29794044,2628.3,2622.4,1.5833]
[1729557100279,0.01877696,2625.2,2624.8,3.80981]
[1729557100426,3.80873,2625.6,2622.8,0.01]
[1729557100626,1.5919,2625.9,2623.8,0.01]
[1729557100860,0.01877696,2626.3,2624.5,3.81024]
[1729557101064,0.01,2625.5,2622.1,0.01]
[1729557101263,5.0,2625.8,2621.0,3.9178719]
[1729557101264,0.01,2624.6,2621.5,3.01]
[1729557101488,0.60733197,2624.8,2622.4,3.8133]
[1729557101705,3.80926,2625.2,2624.0,3.81086]
[1729557101917,3.80895,2625.4,2624.3,3.81053]
[1729557102204,3.80983,2624.8,2623.0,5.39568]
[1729557102404,5.02877696,2625.8,2623.2,0.01]
[1729557102405,3.8085,2625.7,2623.2,0.01]
[1729557102609,0.23847182,2625.6,2623.0,1.5933]
[1729557102807,3.80918,2625.3,2623.2,0.01]
[1729557103103,1.5459,2625.9,2623.0,1.5333]
[1729557103104,0.23847182,2625.7,2623.5,0.02]
[1729557103314,4.04714182,2625.6,2623.2,0.01]
[1729557103604,5.35413,2625.9,2623.0,1.5333]
[1729557103605,0.23847182,2625.5,2624.2,0.55]
[1729557103804,0.01877696,2626.4,2624.1,3.0]
[1729557103805,0.23847182,2625.8,2624.9,0.55]
[1729557103963,0.01877696,2626.4,2625.7,3.8085]
[1729557104166,0.23847182,2627.1,2625.3,0.55]
[1729557104405,0.53829279,2627.0,2626.0,3.80802]
[1729557104631,0.77676461,2626.9,2626.2,3.80772]
[1729557104777,0.53829279,2626.8,2626.1,3.0]
[1729557104979,0.53829279,2626.7,2626.1,0.3]
[1729557105177,0.56068991,2627.0,2626.1,0.3]
[1729557105505,0.56068991,2626.6,2623.7,0.01]
[1729557105672,0.56099742,2625.8,2624.4,1.6566]
[1729557105891,0.5388737,2625.7,2625.6,3.80854]
[1729557106206,0.53862101,2626.0,2625.6,3.80865]
[1729557106410,0.56099742,2626.6,2625.5,0.01]
[1729557106566,0.53976894,2626.5,2624.8,0.41212348]
[1729557106763,0.01877696,2626.9,2624.8,0.41212348]
[1729557106764,0.56099742,2626.3,2625.9,3.8082]
[1729557107006,0.56099742,2626.3,2625.5,3.80867]
[1729557107007,1.11537447,2626.2,2625.5,3.80867]
[1729557107316,0.56331357,2625.9,2625.1,3.0]
[1729557107465,0.56331357,2625.9,2624.6,8.1974291]
[1729557107466,1.11708368,2625.8,2625.7,3.80846]
[1729557107666,1.11708368,2625.8,2625.7,6.80846]
[1729557107867,0.33798814,2625.8,2625.5,3.80877]
[1729557108169,0.87901473,2625.7,2625.6,3.80865]
[1729557108411,6.04297319,2625.7,2624.2,0.005]
[1729557108618,0.56329814,2624.9,2624.2,0.005]
[1729557108818,3.81042,2624.4,2624.2,0.005]
[1729557108964,1.68061721,2624.3,2624.2,0.005]
[1729557109166,4.92789937,2624.3,2624.2,0.005]
[1729557109493,1.11736937,2624.3,2624.2,0.005]
[1729557110570,3.80968,2624.9,2624.2,0.005]
[1729557110774,0.56266215,2624.4,2624.2,0.005]
[1729557111001,0.23846746,2624.7,2624.5,3.8102]
[1729557111307,0.87830856,2624.6,2624.5,3.81024]
[1729557112006,0.33781098,2624.6,2624.5,3.81024]
[1729557112310,0.8783038,2624.6,2624.2,3.005]
[1729557112521,4.92703126,2624.5,2624.2,0.005]
[1729557112682,0.02877696,2625.4,2624.2,0.005]
[1729557112683,1.11677126,2624.4,2624.2,0.005]
[1729557112885,1.11677126,2624.3,2624.2,0.005]
[1729557113273,0.8783038,2624.3,2624.2,0.005]
[1729557113572,1.6799064,2624.3,2624.2,0.005]
[1729557113974,1.11677126,2624.3,2624.2,0.005]
[1729557114169,1.67970021,2624.3,2624.2,3.81568]
[1729557114412,0.54025791,2624.3,2624.2,3.81568]
[1729557114583,0.8779191,2624.3,2624.2,0.005]
[1729557114918,3.81405,2621.9,2621.6,5.2017524]
[1729557115135,4.51891,2621.7,2621.6,5.2017524]
[1729557115412,0.8779191,2621.7,2621.6,5.2017524]
[1729557115571,4.15197119,2621.7,2621.6,5.2017524]
[1729557115771,4.93095682,2621.7,2621.6,5.2017524]
[1729557116170,4.93095682,2621.7,2621.0,2.1580719]
[1729557116171,6.82519,2621.1,2621.0,2.1580719]
[1729557116371,6.82519,2621.1,2619.5,6.0]
[1729557116372,9.38592,2620.6,2619.5,6.0]
[1729557116615,3.81693,2620.0,2618.7,3.81854]
[1729557116832,9.29659582,2619.9,2617.5,8.0]
[1729557116971,3.81898,2618.5,2617.5,8.0]
[1729557117170,0.55644917,2618.1,2617.5,8.0]
[1729557117367,1.98240292,2618.0,2617.5,8.0]
[1729557117568,0.01,2619.7,2617.5,8.0]
[1729557117569,0.5592736,2618.5,2618.4,3.81912]
[1729557117769,0.55689862,2618.5,2618.4,3.81912]
[1729557118026,4.82575142,2619.8,2618.4,3.81912]
[1729557118027,0.23897893,2619.7,2619.6,3.81737]
[1729557118228,1.00867142,2620.7,2619.0,1.6502]
[1729557118229,0.55632706,2619.8,2619.1,8.1974291]
[1729557118373,0.55632706,2620.4,2619.0,1.6502]
[1729557118575,3.81606,2620.6,2619.4,3.81763]
[1729557118875,0.01877696,2621.5,2620.5,3.0]
[1729557119072,0.01877696,2621.5,2620.4,3.81617]
[1729557119073,0.55525523,2621.9,2621.7,3.81424]
[1729557119310,0.55525523,2622.2,2621.8,3.0]
[1729557119495,0.01877696,2622.7,2621.2,3.55]
[1729557119687,3.81141,2623.7,2622.3,3.8133]
[1729557119888,0.53287604,2623.6,2621.9,3.0]
[1729557120097,0.01877696,2623.8,2622.2,3.81354]
[1729557120309,0.01,2623.5,2621.4,2.8]
[1729557120615,0.53346954,2623.9,2620.7,1.6516]
[1729557120616,0.01,2622.8,2620.7,1.6616]
[1729557120848,0.01,2623.9,2620.7,1.6616]
[1729557120849,0.01,2622.4,2620.7,1.6616]
[1729557121122,0.01,2622.0,2620.3,0.01]
[1729557121332,0.59744938,2623.4,2620.0,8.1974291]
[1729557121333,0.01,2622.6,2620.7,3.81577]
[1729557121622,0.01,2622.6,2620.6,3.81591]
[1729557121623,3.81315,2622.5,2620.6,3.81591]
[1729557121824,0.01,2621.1,2619.6,0.01]
[1729557121990,0.01,2622.3,2619.4,4.199343]
[1729557121991,0.01,2620.9,2619.7,3.81721]
[1729557122189,0.01,2620.6,2619.9,3.81679]
[1729557122392,0.01,2620.6,2619.7,3.81721]
[1729557122393,0.01,2621.3,2619.5,3.81752]
[1729557122721,0.01,2620.6,2619.4,0.381763]
[1729557123035,0.01,2620.6,2618.5,0.381912]
[1729557123036,0.01,2618.9,2617.4,1.7089524]
[1729557123330,0.01,2618.9,2618.3,3.81913]
[1729557123494,0.55470172,2620.3,2617.7,8.1974291]
[1729557123693,0.01877696,2620.5,2620.4,3.81621]
[1729557123908,0.55470172,2620.9,2620.8,3.81562]
[1729557124076,0.01,2622.0,2620.3,1.5536]
[1729557124077,0.01877696,2622.0,2620.3,1.5536]
[1729557124426,0.01,2623.2,2620.9,8.1974291]
[1729557124649,0.01877696,2623.5,2620.7,0.01]
[1729557124650,0.01877696,2623.5,2622.1,0.55]
[1729557124928,8.61297098,2624.7,2622.0,1.5436]
[1729557124929,0.01,2624.1,2623.0,3.8124]
[1729557125146,3.81006,2624.7,2622.1,0.56]
[1729557125147,0.01,2624.6,2622.1,0.56]
[1729557125276,0.01877696,2625.0,2623.4,3.0]
[1729557125618,0.01,2624.4,2622.6,0.55]
[1729557125828,0.01877696,2625.0,2622.6,0.55]
[1729557125829,0.01,2624.8,2623.9,6.81112]
[1729557125979,0.01877696,2625.0,2624.9,3.80966]
[1729557126337,0.01,2624.7,2623.6,3.0]
[1729557126478,0.01,2625.2,2622.7,0.55]
[1729557126676,0.01,2625.0,2623.3,0.56]
[1729557126987,0.01,2625.8,2623.6,0.56]
[1729557127188,0.01,2625.6,2624.5,3.81022]
[1729557127414,0.01,2625.2,2624.6,3.80996]
[1729557127590,0.01,2625.6,2624.9,3.80954]
[1729557127922,0.01,2625.4,2623.8,0.55]
[1729557128104,0.01,2625.6,2624.5,3.0]
[1729557128289,0.01,2625.6,2625.1,3.80925]
[1729557128494,0.01,2625.6,2624.9,3.80964]
[1729557128811,0.01,2625.6,2624.2,3.55]
[1729557128990,0.01,2625.0,2624.2,3.0]
[1729557129196,0.54714853,2625.8,2625.0,3.80947]
[1729557129424,0.53714853,2625.7,2624.8,3.0]
[1729557129626,0.34578934,2625.6,2625.0,3.0]
[1729557129806,0.01,2625.6,2625.1,3.80925]
[1729557129983,0.01,2625.3,2624.6,3.0]
[1729557130187,0.01,2625.3,2624.8,3.80977]
[1729557130388,0.01,2625.6,2625.2,3.80923]
[1729557130603,0.01,2625.0,2624.0,3.81085]
[1729557130807,0.01,2624.7,2623.2,3.81213]
[1729557131025,0.01,2624.7,2623.3,0.762428]
[1729557131189,0.33562594,2624.6,2623.4,3.81184]
[1729557131534,0.01,2624.5,2623.0,1.6099]
[1729557131704,0.33561383,2624.4,2623.9,3.81102]
[1729557132035,0.01,2624.7,2622.3,1.5326]
[1729557132036,0.01,2623.9,2622.3,1.5326]
[1729557132239,0.01,2623.2,2622.3,1.5326]
[1729557132545,0.01,2623.6,2622.7,3.81281]
[1729557132689,0.33547462,2623.5,2622.4,3.81321]
[1729557133042,0.54675939,2623.8,2623.2,3.81208]
[1729557133043,0.01,2623.8,2623.2,3.81208]
[1729557133332,0.01,2623.6,2622.3,1.5326]
[1729557133539,0.56952236,2624.4,2622.6,3.813]
[1729557133844,3.80967,2624.9,2623.4,3.0]
[1729557133845,0.01,2624.1,2623.4,3.0]
[1729557134006,0.01,2624.1,2623.4,3.81177]
[1729557134210,0.3358389,2624.0,2623.5,3.81158]
[1729557134524,0.3358389,2623.9,2623.0,3.81229]
[1729557134834,0.01,2624.3,2623.0,0.381229]
[1729557135039,0.79826935,2624.5,2623.4,3.81173]
[1729557135040,0.01,2624.1,2623.4,3.81173]
[1729557135188,0.33608486,2624.0,2623.5,3.81169]
[1729557135389,0.87382063,2623.9,2623.1,6.81215]
[1729557135619,0.01,2624.1,2623.1,3.0]
[1729557135802,0.01,2623.6,2621.6,1.5345]
[1729557136009,0.01,2622.9,2622.4,3.81326]
[1729557136238,0.33637175,2622.8,2622.4,3.81316]
[1729557136453,0.33637175,2622.7,2622.6,3.813]
[1729557136597,0.33654113,2622.7,2622.3,3.81343]
[1729557136797,0.01,2622.9,2622.3,3.81343]
[1729557137001,0.33655056,2622.8,2622.7,3.81286]
[1729557137216,0.33686755,2622.8,2621.7,0.0042329]
[1729557137412,0.01,2623.1,2622.6,3.81287]
[1729557137608,0.01,2623.1,2621.7,0.54055419]
[1729557137609,0.01,2622.4,2621.7,3.8184229]
[1729557137807,0.01,2621.8,2621.7,0.0042329]
[1729557138109,3.81373,2622.1,2621.7,0.0042329]
[1729557138110,3.82373,2622.1,2621.7,0.0042329]
[1729557138328,3.82417,2621.8,2621.7,0.0042329]
[1729557138584,1.44768582,2621.8,2621.7,0.0042329]
[1729557138713,0.87622956,2621.8,2621.7,3.8185429]
[1729557138910,0.87622956,2621.8,2621.7,0.0042329]
[1729557139251,0.56156453,2622.7,2622.2,3.81347]
[1729557139434,0.23860064,2622.8,2621.7,1.5508329]
[1729557139435,0.53943924,2622.6,2621.7,1.5508329]
[1729557139644,0.57156453,2623.3,2622.9,3.81257]
[1729557139842,0.01,2623.3,2623.0,3.81242]
[1729557140017,0.01,2623.1,2622.8,3.0]
[1729557140220,0.01,2623.4,2622.3,3.0]
[1729557140451,0.53957734,2623.4,2623.3,3.81199]
[1729557140607,0.01,2623.7,2623.5,3.81165]
[1729557140807,0.56156453,2623.9,2622.4,0.3]
[1729557140808,0.01,2623.3,2622.4,0.3]
[1729557141047,0.01,2622.7,2621.8,0.47863696]
[1729557141253,0.01,2623.0,2622.5,3.81307]
[1729557141610,0.01,2623.2,2622.6,3.81299]
[1729557141812,0.01,2622.5,2621.7,0.0042329]
[1729557142062,0.02,2621.8,2621.7,0.0042329]
[1729557142264,3.82519,2621.1,2618.7,4.78091879]
[1729557142466,3.82519,2621.1,2619.8,3.81698]
[1729557142467,12.9779734,2621.1,2619.8,3.81698]
[1729557142757,13.21658983,2621.1,2619.4,3.81761]
[1729557143065,0.01,2618.4,2618.3,3.22841879]
[1729557143430,0.01,2619.3,2618.7,3.81866]
[1729557143619,0.01,2619.3,2618.6,4.29547892]
[1729557143819,0.56138511,2620.5,2619.1,0.01]
[1729557144061,0.56138511,2620.5,2618.3,3.92095149]
[1729557144062,0.01,2620.4,2619.5,1.5916]
[1729557144219,0.56138511,2621.4,2618.8,1.5443]
[1729557144220,0.01,2620.2,2618.8,1.5443]
[1729557144417,0.01,2620.1,2618.9,0.97428397]
[1729557144625,0.01,2621.0,2619.3,3.81781]
[1729557144862,0.01877696,2621.6,2621.5,3.8146]
[1729557145172,0.01,2622.1,2620.7,1.5343]
[1729557145320,0.005,2621.9,2621.4,0.07625247]
[1729557145521,0.005,2622.2,2621.5,0.07625247]
[1729557145721,0.005,2621.7,2620.7,1.5343]
[1729557145924,8.61297098,2622.2,2621.6,3.81444]
[1729557146121,0.005,2622.5,2622.0,3.81374]
[1729557146358,0.005,2622.5,2621.3,3.81489]
[1729557146359,0.53893646,2622.8,2622.1,0.07626165]
[1729557146566,0.005,2622.7,2622.4,3.81326]
[1729557146734,0.005,2622.3,2621.9,3.81402]
[1729557147059,0.02877696,2623.2,2622.1,3.81372]
[1729557147060,0.005,2622.6,2622.1,3.81372]
[1729557147361,0.005,2622.4,2622.2,0.07626259]
[1729557147578,0.005,2621.9,2621.3,3.0]
[1729557147725,0.005,2621.9,2620.3,3.81628]
[1729557147726,0.005,2620.9,2620.3,3.81628]
[1729557147928,0.005,2620.9,2619.4,3.81755]
[1729557148235,0.005,2621.2,2619.8,3.81708]
[1729557148468,1.34197579,2621.7,2621.2,3.81503]
[1729557148469,0.005,2621.7,2621.2,3.81503]
[1729557148621,0.005,2621.7,2620.1,0.01]
[1729557148622,0.5407016,2621.8,2621.4,3.81473]
[1729557148818,0.23874696,2622.2,2621.9,3.81401]
[1729557149022,0.23874696,2622.2,2621.7,3.8143]
[1729557149023,0.005,2621.6,2620.8,3.0]
[1729557149221,0.005,2622.0,2621.6,3.81444]
[1729557149446,0.005,2622.1,2621.7,0.07594086]
[1729557149664,0.005,2622.1,2620.9,3.81548]
[1729557149665,0.005,2622.2,2620.8,0.3]
[1729557149913,0.005,2622.4,2621.8,3.81405]
[1729557150054,0.005,2622.6,2622.0,3.81373]
[1729557150256,0.005,2621.9,2620.4,3.0]
[1729557150455,8.61797098,2622.6,2621.9,3.81392]
[1729557150685,0.005,2622.4,2621.4,3.81462]
[1729557150883,0.005,2622.6,2622.1,3.81359]
[1729557151089,0.54105627,2622.7,2622.2,0.0762605]
[1729557151289,0.005,2623.3,2622.2,0.55]
[1729557151489,0.33824132,2623.2,2622.2,0.55]
[1729557151667,0.005,2623.7,2623.1,3.81216]
[1729557151869,3.8107,2624.2,2622.2,0.355]
[1729557151870,0.24362213,2623.5,2622.2,0.355]
[1729557152059,0.87957184,2623.4,2623.1,3.81227]
[1729557152267,0.005,2623.7,2622.1,3.55]
[1729557152268,0.3383071,2623.3,2622.1,3.55]
[1729557152498,0.005,2623.7,2623.2,3.81212]
[1729557152700,0.005,2623.2,2622.9,3.0]
[1729557153006,0.005,2623.6,2623.0,0.07623945]
[1729557153209,0.33842043,2623.5,2623.4,3.81183]
[1729557153392,0.005,2623.8,2623.2,3.0]
[1729557153574,0.33903092,2623.7,2623.4,3.81184]
[1729557153762,0.005,2624.2,2623.6,3.81155]
[1729557153964,0.005,2624.2,2623.5,0.0762222]
[1729557153965,0.33905091,2624.1,2624.0,3.81097]
[1729557154185,0.005,2624.8,2623.7,3.0]
[1729557154394,0.33907536,2624.7,2623.8,3.81121]
[1729557154572,0.56376091,2625.2,2623.0,1.6427]
[1729557154573,0.005,2624.3,2623.3,3.0]
[1729557154774,0.005,2624.3,2623.9,3.81109]
[1729557154959,0.005,2624.5,2623.9,3.81109]
[1729557155189,0.33903031,2624.4,2624.2,3.81057]
[1729557155498,0.33893595,2624.3,2623.4,3.0]
[1729557155700,0.24347515,2624.8,2624.4,3.81037]
[1729557155860,0.88129273,2624.7,2624.4,3.81038]
[1729557156172,0.34395874,2624.6,2623.7,0.55]
[1729557156373,0.33895874,2624.5,2624.2,3.81068]
[1729557156571,0.56876091,2625.1,2623.9,3.0]
[1729557156803,0.88140143,2625.0,2624.6,3.80997]
[1729557157099,0.33900055,2624.9,2624.5,3.81015]
[1729557157337,0.33896158,2624.8,2624.5,3.81015]
[1729557157498,0.005,2625.2,2623.2,3.0]
[1729557157499,0.33894561,2624.7,2623.2,3.0]
[1729557157684,0.33892799,2624.6,2624.0,3.0]
[1729557157885,0.005,2624.3,2623.5,3.81168]
[1729557158122,0.005,2624.3,2621.8,3.81407]
[1729557158123,3.81186,2623.4,2622.1,1.5511]
[1729557158280,0.005,2622.7,2622.0,3.81374]
[1729557158621,4.69308646,2623.3,2621.4,1.5511]
[1729557158622,0.005,2622.8,2622.2,3.81354]
[1729557158778,0.005,2622.8,2621.6,3.81446]
[1729557158977,3.81531,2624.5,2622.9,5.41077]
[1729557159182,3.80895,2625.4,2623.5,3.81158]
[1729557159183,0.005,2624.0,2623.5,3.81158]
[1729557159383,0.005,2623.8,2622.3,3.0]
[1729557159583,0.005,2623.2,2621.8,0.50635743]
[1729557159831,0.005,2623.2,2622.5,3.81309]
[1729557160118,0.005,2623.2,2622.5,3.81314]
[1729557160335,0.005,2623.5,2622.6,0.07253775]
[1729557160619,9.18325248,2624.2,2623.6,3.81153]
[1729557160821,0.005,2624.0,2623.7,0.07621481]
[1729557161084,0.005,2623.8,2623.0,1.5841]
[1729557161236,0.005,2623.2,2622.7,3.81272]
[1729557161448,0.005,2622.4,2620.9,6.21498146]
[1729557161593,0.005,2622.4,2620.6,0.01]
[1729557161594,0.005,2622.2,2621.5,3.81455]
[1729557161937,0.005,2622.2,2621.0,3.8152]
[1729557161938,0.005,2622.0,2621.3,3.81485]
[1729557162143,0.005,2621.0,2620.7,0.52961993]
[1729557162308,0.005,2621.1,2619.9,1.5585]
[1729557162491,0.01,2622.0,2619.9,1.5585]
[1729557162492,0.005,2621.5,2619.9,7.77348146]
[1729557162795,0.005,2621.3,2620.8,3.81555]
[1729557162992,0.005,2621.3,2621.0,3.81527]
[1729557163239,0.005,2621.4,2620.6,0.47653243]
[1729557163437,0.23876746,2621.9,2620.0,0.77734815]
[1729557163438,0.005,2621.6,2620.1,3.81664]
[1729557163590,0.54282023,2621.8,2621.3,3.81478]
[1729557163790,0.005,2621.9,2621.3,3.81476]
[1729557164029,0.005,2621.9,2621.6,3.81445]
[1729557164240,0.005,2621.1,2620.6,0.44598493]
[1729557164530,9.15585742,2622.1,2619.7,6.21498146]
[1729557164531,0.005,2621.5,2621.0,3.81529]
[1729557164741,0.005,2622.2,2621.1,0.381529]
[1729557164891,0.005,2620.9,2619.9,1.5585]
[1729557165092,0.005,2620.9,2620.6,3.81577]
[1729557165294,0.005,2620.7,2619.3,7.82928146]
[1729557165503,0.01,2621.7,2618.6,0.01]
[1729557165504,0.005,2619.7,2619.2,3.81788]
[1729557165724,0.005,2619.0,2618.4,3.81902]
[1729557165924,0.005,2619.5,2619.3,3.81775]
[1729557166124,0.005,2619.7,2619.0,3.81813]
[1729557166323,0.54208356,2620.1,2618.6,10.04379146]
[1729557166540,0.005,2620.1,2619.5,3.81739]
[1729557166695,0.005,2620.0,2619.7,3.81721]
[1729557166896,0.005,2619.3,2618.9,3.81834]
[1729557167130,0.005,2619.7,2619.3,3.8178]
[1729557167494,0.005,2619.7,2619.1,3.81809]
[1729557167495,0.005,2619.9,2618.7,3.81868]
[1729557167695,12.99374186,2620.5,2618.6,6.21498146]
[1729557167696,0.005,2620.3,2618.8,1.6007]
[1729557167939,9.17762186,2620.9,2620.0,3.81667]
[1729557167940,0.005,2620.5,2620.0,3.81667]
[1729557168102,0.005,2621.1,2620.7,3.81575]
[1729557168296,0.01877696,2621.3,2620.6,3.81581]
[1729557168543,0.005,2620.8,2620.7,0.07630707]
[1729557168750,0.005,2620.8,2619.6,3.81737]
[1729557168931,0.005,2620.8,2620.2,3.81637]
[1729557169138,0.01,2621.8,2619.7,3.0]
[1729557169139,0.005,2621.0,2619.7,3.0]
[1729557169342,8.61297098,2621.4,2620.4,3.81619]
[1729557169343,0.005,2620.9,2620.4,3.81619]
[1729557169653,8.51797098,2621.4,2620.8,3.8156]
[1729557169809,8.51797098,2621.7,2620.4,3.81613]
[1729557170009,0.01,2621.4,2620.4,3.81613]
[1729557170207,0.33831119,2621.3,2620.5,0.0763091]
[1729557170531,0.56465088,2622.4,2620.6,3.0]
[1729557170737,0.33846717,2622.3,2621.8,3.81406]
[1729557170906,8.52797098,2622.8,2621.7,3.81424]
[1729557171108,3.81316,2622.5,2621.7,3.81424]
[1729557171309,3.81369,2622.2,2621.3,3.81479]
[1729557171508,3.81379,2622.1,2621.3,3.81479]
[1729557171730,3.81344,2622.3,2620.9,3.81542]
[1729557171938,3.81409,2621.9,2620.2,0.55]
[1729557172143,0.01,2621.1,2619.5,0.005]
[1729557172350,3.81737,2619.6,2619.5,0.005]
[1729557172551,12.33534098,2619.6,2619.5,0.005]
[1729557172772,8.51797098,2619.6,2619.5,0.005]
[1729557172971,3.81721,2619.8,2619.5,0.005]
[1729557173268,0.338229,2619.7,2619.5,0.005]
[1729557173475,7.6343,2619.8,2619.5,0.005]
[1729557173642,12.33534098,2619.6,2619.5,0.005]
[1729557173963,3.81709,2619.8,2619.5,0.005]
[1729557174121,3.81708,2619.9,2619.5,0.005]
[1729557174324,3.81666,2620.1,2619.5,0.005]
[1729557174524,8.51797098,2620.6,2619.5,4.204675]
[1729557174767,12.33395098,2620.6,2619.5,0.005]
[1729557174922,12.33395098,2620.6,2619.9,3.81686]
[1729557174923,8.51797098,2620.6,2619.9,3.81686]
[1729557175122,0.01877696,2620.7,2620.2,3.81648]
[1729557175339,3.81509,2621.2,2620.3,3.81635]
[1729557175536,3.81509,2621.2,2620.1,3.81663]
[1729557175537,3.81534,2621.0,2620.1,3.81663]
[1729557175738,3.83295696,2621.8,2620.9,3.81548]
[1729557175739,3.81447,2621.6,2620.9,3.81548]
[1729557175954,3.81446,2621.6,2620.8,3.81552]
[1729557176481,0.01877696,2621.8,2621.2,3.8149]
[1729557176769,3.81393,2622.0,2621.3,3.81484]
[1729557177063,0.01,2622.5,2621.6,3.81434]
[1729557177064,3.81345,2622.3,2621.6,3.81434]
[1729557177267,3.814,2622.0,2621.0,3.81523]
[1729557177437,3.81435,2621.7,2620.9,3.81537]
[1729557177647,0.01,2622.2,2621.1,3.81517]
[1729557177648,3.81382,2622.1,2621.1,3.81517]
[1729557177843,3.81434,2621.7,2621.0,3.8153]
[1729557178149,3.81418,2621.8,2621.1,3.81516]
[1729557178668,3.81471,2621.5,2620.6,3.8159]
[1729557178828,3.81471,2621.5,2620.8,3.81558]
[1729557179025,3.81471,2621.5,2620.8,7.63108]
[1729557179229,3.81471,2621.5,2620.8,3.8155]
[1729557179474,8.51797098,2621.8,2621.1,3.81519]
[1729557179680,8.51797098,2621.8,2620.7,3.81577]
[1729557179833,12.33226098,2621.8,2621.1,3.81514]
[1729557180028,8.51797098,2621.8,2621.4,3.81471]
[1729557180331,3.81371,2622.2,2621.4,3.81471]
[1729557180680,3.81404,2621.9,2621.2,3.8149]
[1729557180832,3.81269,2622.9,2620.8,0.01]
[1729557181038,8.51797098,2623.0,2621.5,3.81456]
[1729557181039,3.81362,2622.2,2621.5,3.81456]
[1729557181249,3.81362,2622.2,2620.9,3.81542]
[1729557181250,3.81362,2622.2,2621.4,3.81465]
[1729557181586,3.81292,2622.7,2621.9,3.81397]
[1729557181870,3.81292,2622.7,2620.5,3.01]
[1729557181871,3.81366,2622.2,2621.4,3.81464]
[1729557182071,3.81333,2622.4,2621.8,3.81415]